[Event "41th GRE-ch Women 2018"]
[Site "Thessaloniki"]
[Date "2018.12.19"]
[Round "8"]
[White "Androni, Konstantina"]
[Black "Fragkou, Eleni"]
[Result "0-1"]
[ECO "E81"]
[WhiteElo "1912"]
[BlackElo "2031"]
[Annotator "NA"]
[PlyCount "70"]
[EventDate "2018.12.12"]
[EventType "tourn"]
[EventCountry "GRE"]
[SourceTitle "playchess.com"]
[Source "ChessBase"]
[SourceQuality "1"]
[TimeControl "40/5400+30:1800+30"]

1. d4 {[%emt 0:00:00]} Nf6 {[%emt 0:00:00]} 2. c4 {[%emt 0:00:00]} g6 {[%emt 0:00:00]} 3. Nc3 {[%emt 0:00:00]} Bg7 {[%emt 0:00:21]} 4. e4 {[%emt 0:00:03]} d6 {[%emt 0:00:08]} 5. f3 {[%emt 0:00:06]} O-O {[%emt 0:00:08]} 6. Be3 {[%emt 0:00:04]} c5 {[%emt 0:00:07]} 7. Nge2 {[%emt 0:01:14]} Nc6 {[%emt 0:00:32]} 8. d5 {[%emt 0:00:07]} Ne5 {[%emt 0:00:08]} 9. Ng3 {[%emt 0:00:54]} h5 {[%emt 0:00:25]} 10. Be2 {[%emt 0:00:24]} e6 {[%emt 0:05:34]} 11. O-O {[%emt 0:06:04]} exd5 {[%emt 0:01:22]} 12. cxd5 {[%emt 0:00:45]} a6 {[%emt 0:02:01]} 13. a4 {[%emt 0:00:16]} Re8 {[%emt 0:05:00]} 14. Qd2 {[%emt 0:02:26] LiveBook: 18 Games} Rb8 {[%emt 0:07:56]} 15. a5 $146 {[%emt 0:13:35] A65: Modern Benoni: 6 e4} ({Predecessor:} 15. Bg5 Qa5 16. f4 Ned7 17. Kh1 Nh7 18. Bh4 Qb4 19. Bxh5 gxh5 20. Nxh5 Ndf6 21. Nxg7 Kxg7 22. Bxf6+ Nxf6 {½-½ (59) Del Rio de Angelis,S (2471)-Perez Mitjans,O (2496) Roquetas de Mar 2013}) 15... b5 {[%emt 0:08:51]} 16. axb6 {[%emt 0:01:48]} Rxb6 {[%emt 0:00:11]} 17. Ra2 {[%emt 0:01:02]} Rb4 {[%emt 0:07:13]} 18. Bh6 {[%emt 0:13:28]} Bh8 {[%emt 0:34:39]} 19. Bxa6 {[%emt 0:01:06]} Bxa6 $11 {[%emt 0:02:51]} 20. Rxa6 {[%emt 0:00:02]} Nc4 {[%emt 0:03:04]} 21. Qf4 {[%emt 0:05:20]} Nd7 {[%emt 0:05:05]} 22. Qc1 {[%emt 0:18:02]} Nde5 {[%emt 0:09:01]} 23. Na2 {[%emt 0:13:20]} Rxb2 {[%emt 0:04:14]} 24. f4 {[%emt 0:00:07]} Ng4 {[%emt 0:00:20]} 25. Qxc4 {[%emt 0:04:17]} Rxg2+ {[%emt 0:00:21]} 26. Kxg2 {[%emt 0:01:40]} Ne3+ {[%emt 0:00:03]} 27. Kh1 {[%emt 0:00:34]} Nxc4 {[%emt 0:00:05]} 28. f5 {[%emt 0:00:24]} h4 {[%emt 0:01:13]} 29. fxg6 {[%emt 0:00:21]} fxg6 {[%emt 0:00:10]} 30. Nf5 {[%emt 0:07:59]} gxf5 {[%emt 0:01:09]} 31. Ra7 {[%emt 0:00:02]} Rxe4 {[%emt 0:01:46]} 32. Rxf5 {[%emt 0:00:42]} Re1+ {[%emt 0:00:27]} 33. Kg2 {[%emt 0:00:05]} Ne3+ {[%emt 0:00:13]} 34. Bxe3 {[%emt 0:03:09]} Rxe3 {[%emt 0:00:06]} 35. Raf7 {[%emt 0:03:21]} Qe8 {[%emt 0:00:45]} 0-1

[Event "41th GRE-ch Women 2018"]
[Site "Thessaloniki"]
[Date "2018.12.19"]
[Round "8"]
[White "Tsivelekidou, Evgenia"]
[Black "Petraki, Evaggelia"]
[Result "1-0"]
[ECO "E06"]
[WhiteElo "1861"]
[BlackElo "1756"]
[Annotator "NA"]
[PlyCount "87"]
[EventDate "2018.12.12"]
[EventType "tourn"]
[EventCountry "GRE"]
[SourceTitle "playchess.com"]
[Source "ChessBase"]
[SourceQuality "1"]
[TimeControl "40/5400+30:1800+30"]

1. d4 {[%emt 0:00:00]} Nf6 {[%emt 0:00:00]} 2. g3 {[%emt 0:00:00]} d5 {[%emt 0:00:11]} 3. c4 {[%emt 0:00:00]} e6 {[%emt 0:00:14]} 4. Nf3 {[%emt 0:00:25]} Be7 {[%emt 0:02:36]} 5. Bg2 {[%emt 0:00:07]} O-O {[%emt 0:00:21]} 6. O-O {[%emt 0:00:05]} c6 {[%emt 0:00:20]} 7. Qc2 {[%emt 0:00:15]} Nbd7 {[%emt 0:01:49]} 8. Rd1 {[%emt 0:00:24]} b6 {[%emt 0:01:11]} 9. b3 {[%emt 0:00:38]} Bb7 {[%emt 0:00:14]} 10. Nc3 {[%emt 0:00:49]} Rc8 {[%emt 0:01:17]} 11. e4 {[%emt 0:03:36]} dxe4 {[%emt 0:00:42]} 12. Nxe4 {[%emt 0:00:06]} c5 {[%emt 0:03:25]} 13. Nxf6+ {[%emt 0:03:30]} Bxf6 {[%emt 0:00:29]} 14. Ng5 {[%emt 0:05:48]} Bxg5 {[%emt 0:01:25]} 15. Bxb7 {[%emt 0:02:09]} Rc7 {[%emt 0:00:08]} 16. Bg2 {[%emt 0:03:43]} cxd4 {[%emt 0:05:35]} 17. Bxg5 {[%emt 0:01:52]} Qxg5 {[%emt 0:00:05]} 18. Rxd4 {[%emt 0:00:30]} b5 {[%emt 0:05:24]} 19. Qd1 {[%emt 0:08:17]} Nb6 {[%emt 0:01:04]} 20. cxb5 {[%emt 0:02:31]} Qxb5 {[%emt 0:00:11]} 21. a4 {[%emt 0:00:45]} Qg5 {[%emt 0:06:28]} 22. a5 {[%emt 0:03:37]} Nc8 {[%emt 0:04:55]} 23. b4 {[%emt 0:04:43]} g6 {[%emt 0:01:13]} 24. Rb1 {[%emt 0:02:50]} Qb5 {[%emt 0:05:56]} 25. Bf1 {[%emt 0:07:01]} Qf5 {[%emt 0:01:21]} 26. Rb2 {[%emt 0:13:23]} Ne7 {[%emt 0:03:44]} 27. b5 {[%emt 0:09:29]} Nd5 {[%emt 0:00:53]} 28. Bg2 {[%emt 0:04:25]} Nc3 {[%emt 0:02:28]} 29. Qf1 {[%emt 0:01:13]} Qc5 {[%emt 0:06:00]} 30. Rdb4 {[%emt 0:04:16]} Rd8 {[%emt 0:05:02]} 31. Bf3 {[%emt 0:01:01]} Rcd7 {[%emt 0:10:20]} 32. b6 {[%emt 0:06:50]} axb6 {[%emt 0:00:45]} 33. axb6 {[%emt 0:00:07]} Qf5 {[%emt 0:00:23]} 34. Kg2 {[%emt 0:03:46]} Rd3 {[%emt 0:09:20]} 35. Rf4 {[%emt 0:00:35]} Qe5 {[%emt 0:01:58]} 36. b7 {[%emt 0:01:13]} R3d7 {[%emt 0:03:45]} 37. Rfb4 {[%emt 0:02:23]} Rb8 {[%emt 0:01:08]} 38. Qc4 {[%emt 0:01:33]} Rc7 {[%emt 0:03:21]} 39. Qb3 {[%emt 0:04:56]} Kg7 {[%emt 0:08:19]} 40. Rc4 {[%emt 0:00:00]} Rxc4 {[%emt 0:00:00]} 41. Qxc4 {[%emt 0:00:26]} Nd5 {[%emt 0:02:35]} 42. Rb5 {[%emt 0:04:07]} Qc7 {[%emt 0:06:07]} 43. Bxd5 {[%emt 0:01:02]} exd5 {[%emt 0:00:06]} 44. Qxc7 1-0

[Event "41th GRE-ch Women 2018"]
[Site "Thessaloniki"]
[Date "2018.12.20"]
[Round "9"]
[White "Fragkou, Eleni"]
[Black "Tsivelekidou, Evgenia"]
[Result "1/2-1/2"]
[ECO "C45"]
[WhiteElo "2031"]
[BlackElo "1861"]
[Annotator "NA RC"]
[PlyCount "104"]
[EventDate "2018.12.12"]
[EventType "tourn"]
[EventCountry "GRE"]
[SourceTitle "playchess.com"]
[Source "ChessBase"]
[SourceQuality "1"]
[TimeControl "40/5400+30:1800+30"]

1. e4 {[%emt 0:00:00]} e5 {[%emt 0:00:00]} 2. Nf3 {[%emt 0:00:00]} Nc6 {[%emt 0:00:00]} 3. d4 {[%emt 0:00:05]} exd4 {[%emt 0:00:00]} 4. Nxd4 {[%emt 0:00:42]} Nf6 {[%emt 0:00:00]} 5. Nxc6 {[%emt 0:00:15]} bxc6 {[%emt 0:00:03]} 6. e5 {[%emt 0:00:12]} Qe7 {[%emt 0:00:18]} 7. Qe2 {[%emt 0:00:13]} Nd5 {[%emt 0:00:07]} 8. c4 {[%emt 0:00:26]} Nb6 {[%emt 0:00:20]} 9. Nc3 {[%emt 0:00:27]} Qe6 {[%emt 0:01:27] LiveBook: 488 Games} 10. Qe4 {[%emt 0:00:51]} Be7 {[%emt 0:09:36] C45: Scotch Game} (10... g6 11. Bd2 Bg7 12. c5 Nd5 13. Bc4 Qxe5 14. Qxe5+ Bxe5 15. Bxd5 cxd5 16. O-O-O O-O 17. Nxd5 Rb8 18. Bc3 Bxc3 19. Nxc3 {1-0 (49) Yu,Y (2729)-Dominguez Perez,L (2739) Doha 2016}) 11. Bd3 {[%emt 0:12:42]} Bb7 {[%emt 0:08:22]} 12. O-O {[%emt 0:16:46]} d5 $146 {[%emt 0:11:57]} ({Predecessor:} 12... c5 13. Qe2 a6 14. Bd2 O-O 15. Rae1 Rfe8 16. b3 Rad8 17. f4 f5 18. exf6 Qxf6 {1-0 (38) Volkov,D (2248)-Lee,J (1682) Philadelphia 2017}) 13. exd6 {[%emt 0:08:43]} Qxe4 {[%emt 0:14:03]} 14. d7+ {[%emt 0:06:29]} ({Much worse is} 14. Bxe4 cxd6 15. Bd3 O-O $14) (14. Nxe4 $16 cxd6 15. Re1) 14... Nxd7 {[%emt 0:04:58]} 15. Bxe4 {[%emt 0:01:45]} O-O {[%emt 0:03:21]} 16. Bf4 {[%emt 0:04:47]} Bd6 {[%emt 0:09:10]} 17. Bxd6 {[%emt 0:13:11]} cxd6 {[%emt 0:00:05]} 18. Rfd1 {[%emt 0:00:18]} Ne5 {[%emt 0:08:01]} 19. Rxd6 {[%emt 0:07:33]} Nxc4 {[%emt 0:01:12]} 20. Rd7 {[%emt 0:04:01]} Rab8 {[%emt 0:03:37]} 21. Na4 {[%emt 0:06:37]} Nb6 {[%emt 0:02:37]} 22. Nxb6 {[%emt 0:01:17]} axb6 {[%emt 0:00:05]} 23. Rad1 {[%emt 0:00:21]} Bc8 {[%emt 0:03:30]} 24. Ra7 {[%emt 0:04:25]} c5 {[%emt 0:03:53]} 25. Bd5 {[%emt 0:03:31]} Bf5 {[%emt 0:01:57]} 26. f3 {[%emt 0:04:21]} h5 {[%emt 0:01:13]} 27. a4 {[%emt 0:01:30]} Bg6 {[%emt 0:01:53]} 28. Bc4 {[%emt 0:01:07]} Rfd8 {[%emt 0:02:36]} 29. Rdd7 {[%emt 0:00:22]} Rxd7 {[%emt 0:01:19]} 30. Rxd7 {[%emt 0:00:05]} Kf8 {[%emt 0:01:15]} 31. Kf2 {[%emt 0:00:12]} f6 {[%emt 0:04:51]} 32. b3 {[%emt 0:00:44]} Be8 {[%emt 0:00:45]} 33. Rc7 {[%emt 0:00:17]} Rd8 {[%emt 0:01:18]} 34. Rb7 {[%emt 0:00:15]} Rd6 {[%emt 0:00:39]} 35. Ke3 {[%emt 0:01:06]} Bd7 {[%emt 0:01:28]} 36. f4 {[%emt 0:01:33]} f5 {[%emt 0:01:08]} 37. g3 {[%emt 0:00:16]} Be6 {[%emt 0:00:22] [#]} 38. Bxe6 $1 {[%emt 0:00:40]} Rxe6+ {[%emt 0:00:04]} 39. Kd3 {[%emt 0:00:31]} h4 {[%emt 0:00:34]} 40. gxh4 {[%emt 0:00:00]} Rd6+ {[%emt 0:00:00]} 41. Ke3 {[%emt 0:09:27]} Kg8 {[%emt 0:05:11]} 42. h5 {[%emt 0:02:49]} Kh7 {[%emt 0:04:43]} 43. Rb8 {[%emt 0:01:39]} Rc6 {[%emt 0:02:48]} 44. Kd3 {[%emt 0:06:01]} Rd6+ {[%emt 0:00:35]} 45. Kc3 {[%emt 0:01:43]} Re6 {[%emt 0:01:12]} 46. Rf8 {[%emt 0:02:34]} Re3+ {[%emt 0:05:20]} 47. Kc2 {[%emt 0:01:25]} Re2+ {[%emt 0:02:11]} 48. Kd3 {[%emt 0:00:36]} Rxh2 {[%emt 0:00:45]} 49. Rxf5 {[%emt 0:00:08]} Rh3+ {[%emt 0:01:30]} 50. Kc4 {[%emt 0:01:54]} Re3 {[%emt 0:01:02]} 51. Re5 {[%emt 0:03:53]} Rf3 {[%emt 0:00:30]} 52. Re4 {[%emt 0:01:10]} Kg8 $18 {[%emt 0:01:05]} (52... Kh6 $142 53. Re6+ {[%mdl 64] Double Attack} Kxh5) 1/2-1/2

[Event "41th GRE-ch Women 2018"]
[Site "Thessaloniki"]
[Date "2018.12.20"]
[Round "9"]
[White "Petraki, Evaggelia"]
[Black "Skaraki, Antigoni"]
[Result "1/2-1/2"]
[ECO "B67"]
[WhiteElo "1756"]
[BlackElo "2012"]
[Annotator "NA RC"]
[PlyCount "151"]
[EventDate "2018.12.12"]
[EventType "tourn"]
[EventCountry "GRE"]
[SourceTitle "playchess.com"]
[Source "ChessBase"]
[SourceQuality "1"]
[TimeControl "40/5400+30:1800+30"]

1. e4 {[%emt 0:00:00]} c5 {[%emt 0:00:00]} 2. Nf3 {[%emt 0:00:00]} d6 {[%emt 0:00:00]} 3. d4 {[%emt 0:00:00]} cxd4 {[%emt 0:00:00]} 4. Nxd4 {[%emt 0:00:00]} Nf6 {[%emt 0:00:00]} 5. Nc3 {[%emt 0:00:00]} Nc6 {[%emt 0:00:00]} 6. Bg5 {[%emt 0:00:04]} e6 {[%emt 0:00:42]} 7. Qd2 {[%emt 0:00:08]} a6 {[%emt 0:00:10]} 8. O-O-O {[%emt 0:00:14]} Bd7 {[%emt 0:00:35]} 9. Kb1 {[%emt 0:00:46]} b5 {[%emt 0:00:51] B67: Sicilian: Richter-Rauzer: 7...a6 8 0-0-0 Bd7, lines without 9 f4 Be7} (9... Nxd4 10. Qxd4 h6 11. Bc1 Bc6 12. f3 Qc7 13. Be2 O-O-O 14. Qf2 d5 15. Be3 Rd7 16. Bb6 Qb8 17. exd5 Nxd5 18. Nxd5 Rxd5 19. Rxd5 exd5 {1-0 (32) Inarkiev,E (2702)-Gelfand,B (2729) Nazran 2017}) 10. f4 {[%emt 0:00:46] LiveBook: 5 Games} Rc8 $146 {[%emt 0:02:16]} ({Predecessor:} 10... b4 11. Bxf6 Qxf6 12. Nce2 Rb8 13. g4 Qd8 14. h4 a5 15. g5 Qb6 16. h5 a4 17. Nxc6 Bxc6 {0-1 (92) Zelcic,R (2557)-Jankovic,A (2541) Otocac 2010}) 11. Nxc6 {[%emt 0:03:33]} Bxc6 {[%emt 0:00:20]} 12. e5 {[%emt 0:00:26]} ({White should try} 12. Qe3 $14) 12... dxe5 {[%emt 0:00:29]} 13. fxe5 {[%emt 0:03:27]} (13. Qf2 $11 Qc7 14. Bxf6 gxf6 15. f5) 13... Qxd2 {[%emt 0:01:42]} 14. Rxd2 {[%emt 0:00:28]} Nd7 {[%emt 0:10:43]} 15. Bf4 {[%emt 0:05:08]} Bb4 {[%emt 0:00:47]} 16. Rd3 {[%emt 0:01:33]} O-O {[%emt 0:12:24]} 17. Rg3 {[%emt 0:13:51]} Bxc3 {[%emt 0:06:42]} 18. bxc3 {[%emt 0:00:05]} Be4 {[%emt 0:04:31]} 19. h4 {[%emt 0:04:49]} Kh8 {[%emt 0:16:07]} 20. Bd3 {[%emt 0:19:37]} (20. Be2 $142) 20... Nc5 {[%emt 0:02:24]} 21. c4 {[%emt 0:07:04]} Bxd3 {[%emt 0:05:38]} 22. cxd3 {[%emt 0:00:06]} bxc4 {[%emt 0:00:06]} 23. dxc4 {[%emt 0:00:08]} Ne4 {[%emt 0:00:22]} 24. Rb3 {[%emt 0:02:47]} Rxc4 {[%emt 0:00:50]} 25. Rc1 {[%emt 0:00:06]} Rxc1+ {[%emt 0:02:15]} 26. Bxc1 {[%emt 0:00:08]} h6 {[%emt 0:08:31]} 27. Rb6 {[%emt 0:01:14]} Ra8 {[%emt 0:00:37]} 28. Rc6 {[%emt 0:00:15]} Nf2 {[%emt 0:05:39]} 29. Kc2 {[%emt 0:02:37]} Ng4 {[%emt 0:02:37]} 30. Bf4 {[%emt 0:01:27]} h5 {[%emt 0:00:53]} (30... Kh7 $17 31. Bg3 Kg6) 31. Kb3 {[%emt 0:17:34]} Kh7 {[%emt 0:00:06]} 32. Rb6 {[%emt 0:06:13]} Kg6 {[%emt 0:00:27]} 33. Rb7 {[%emt 0:00:55]} Nf2 {[%emt 0:04:18]} 34. Be3 {[%emt 0:01:48]} Nd3 {[%emt 0:00:27]} 35. Bd4 {[%emt 0:01:17]} f6 {[%emt 0:03:37]} 36. exf6 {[%emt 0:01:41]} gxf6 {[%emt 0:00:05]} 37. Rb6 {[%emt 0:02:00]} Kf5 {[%emt 0:01:29]} 38. g3 {[%emt 0:01:27]} e5 {[%emt 0:01:30]} 39. Bg1 $2 {[%emt 0:01:43]} (39. Be3) 39... Nc1+ {[%emt 0:00:15]} 40. Kb2 {[%emt 0:00:00]} Ne2 {[%emt 0:00:00]} 41. Bf2 {[%emt 0:01:27]} Nd4 {[%emt 0:14:56]} 42. Kc3 {[%emt 0:06:43]} Ne6 {[%emt 0:13:40]} 43. Kd3 {[%emt 0:02:12]} Rd8+ {[%emt 0:00:51]} 44. Ke2 {[%emt 0:01:04]} Nc7 {[%emt 0:02:22]} 45. Rc6 {[%emt 0:01:04]} Rd7 {[%emt 0:00:10]} 46. a4 {[%emt 0:03:00]} e4 {[%emt 0:03:33]} 47. a5 {[%emt 0:05:29]} Ke5 {[%emt 0:03:41]} 48. Be3 {[%emt 0:06:42]} Nd5 {[%emt 0:00:07]} 49. Bf4+ {[%emt 0:01:40]} Nxf4+ {[%emt 0:01:47]} 50. gxf4+ {[%emt 0:00:02] [#]} Kxf4 $2 {[%emt 0:00:41]} ({Better is} 50... Kf5 $1 $19 51. Rxa6 Rd5) 51. Rxf6+ {[%emt 0:00:04]} Kg4 {[%emt 0:01:02]} 52. Rxa6 {[%emt 0:00:06]} Rd4 {[%emt 0:00:42]} 53. Ke3 {[%emt 0:01:52]} Ra4 {[%emt 0:00:01]} 54. Re6 {[%emt 0:00:20]} Rxa5 55. Rxe4+ {[%emt 0:00:08]} Kg3 {[%emt 0:01:50]} 56. Ke2 {[%emt 0:01:56]} Ra2+ {[%emt 0:00:06]} 57. Ke3 {[%emt 0:00:15]} Rb2 {[%emt 0:01:06]} 58. Rd4 {[%emt 0:01:40]} Rh2 {[%emt 0:00:32]} 59. Rc4 {[%emt 0:00:30]} Ra2 {[%emt 0:00:26]} 60. Rd4 {[%emt 0:00:32]} Ra3+ {[%emt 0:00:27]} 61. Ke2 {[%emt 0:00:31]} Ra8 {[%emt 0:00:10]} 62. Ke3 {[%emt 0:01:14]} Re8+ {[%emt 0:00:13]} 63. Re4 {[%emt 0:00:18]} Rg8 {[%emt 0:00:38]} 64. Ke2 {[%emt 0:02:55]} Rg6 {[%emt 0:00:57]} 65. Ke3 {[%emt 0:01:37]} Kh3 {[%emt 0:00:37]} 66. Ke2 {[%emt 0:00:15]} Rg7 {[%emt 0:00:38]} 67. Rf4 {[%emt 0:00:35]} Rg2+ {[%emt 0:00:20]} 68. Kf3 {[%emt 0:02:24]} Rg4 {[%emt 0:00:56]} 69. Re4 $11 {[%emt 0:00:03]} Kxh4 {[%emt 0:00:14]} 70. Rxg4+ {[%emt 0:00:12]} hxg4+ {[%emt 0:00:03]} 71. Kg2 {[%emt 0:00:03]} g3 {[%emt 0:00:11]} 72. Kg1 {[%emt 0:00:23]} Kh3 {[%emt 0:00:29]} 73. Kh1 {[%emt 0:00:05]} Kg4 {[%emt 0:00:19]} 74. Kg2 {[%emt 0:00:09]} Kf4 {[%emt 0:00:03]} 75. Kg1 {[%emt 0:00:10]} Kf3 {[%emt 0:00:07]} 76. Kf1 {[%emt 0:00:04]} 1/2-1/2

[Event "41th GRE-ch Women 2018"]
[Site "Thessaloniki"]
[Date "2018.12.20"]
[Round "9"]
[White "Nikolaidou, Eleni"]
[Black "Androni, Konstantina"]
[Result "0-1"]
[ECO "B00"]
[WhiteElo "1707"]
[BlackElo "1912"]
[Annotator "NA RC"]
[PlyCount "70"]
[EventDate "2018.12.12"]
[EventType "tourn"]
[EventCountry "GRE"]
[SourceTitle "playchess.com"]
[Source "ChessBase"]
[SourceQuality "1"]
[TimeControl "40/5400+30:1800+30"]

1. e4 {[%emt 0:01:17]} d6 {[%emt 0:00:45]} 2. Bc4 {[%emt 0:01:53]} Nf6 {[%emt 0:01:00]} 3. d3 {[%emt 0:00:09]} g6 {[%emt 0:02:16]} 4. c3 {[%emt 0:00:15] B07: Pirc Defence: Miscellaneous Systems} (4. Nf3 Bg7 5. O-O O-O 6. c3 d5 7. exd5 Nxd5 8. d4 Nc6 9. Re1 Bf5 10. Nbd2 Nb6 11. Bb3 Na5 12. Nf1 Nxb3 13. axb3 Be6 14. Ng3 a6 15. h3 Rc8 16. c4 c6 17. Bf4 Qd7 18. Qd2 Rcd8 19. Rad1 Bf5 20. Bh6 Bxh6 21. Qxh6 f6 22. Nxf5 gxf5 23. Qe3 Rfe8 24. d5 cxd5 25. Qxb6 {1-0 (25) Savic,M (2628)-Tadic,B (2561) Belgrade 2016}) 4... Bg7 {[%emt 0:00:14]} 5. Ne2 {[%emt 0:01:50]} c6 {[%emt 0:01:06]} 6. Bb3 {[%emt 0:01:17]} e5 {[%emt 0:03:20]} 7. O-O O-O {[%emt 0:00:09]} 8. Bg5 {[%emt 0:09:26]} h6 {[%emt 0:03:35]} 9. Bh4 {[%emt 0:00:11]} Nbd7 {[%emt 0:00:55]} 10. Nd2 $146 {[%emt 0:02:22]} ({Predecessor:} 10. Bg3 Nh5 11. d4 {½-½ (19) Candea,G (2232)-Olesen,P (2060) Condino 2009}) 10... Nc5 {[%emt 0:05:20]} 11. Bc2 {[%emt 0:00:20]} Qc7 {[%emt 0:06:09]} 12. Rc1 {[%emt 0:16:10]} Bd7 {[%emt 0:04:40]} 13. b4 {[%emt 0:03:25]} Ne6 {[%emt 0:00:21]} 14. Bb3 {[%emt 0:00:48]} Rae8 {[%emt 0:06:39]} 15. f3 {[%emt 0:04:18]} Nh5 {[%emt 0:01:54]} 16. Bf2 {[%emt 0:01:26]} Qd8 {[%emt 0:01:11]} 17. Nc4 {[%emt 0:01:32]} Bc8 {[%emt 0:07:45]} 18. Bxa7 {[%emt 0:03:11]} Nef4 {[%emt 0:07:21]} 19. Be3 {[%emt 0:09:53]} b5 {[%emt 0:06:32]} ({Black should try} 19... d5) 20. Na5 {[%emt 0:03:03]} Bd7 {[%emt 0:08:08]} 21. a4 {[%emt 0:11:53]} Qg5 {[%emt 0:01:13]} 22. Nxf4 {[%emt 0:01:28]} exf4 {[%emt 0:00:08]} 23. Bd4 {[%emt 0:01:36]} c5 {[%emt 0:03:55]} 24. bxc5 {[%emt 0:00:46]} dxc5 {[%emt 0:00:05]} 25. Bxg7 {[%emt 0:01:09]} Kxg7 {[%emt 0:00:08]} 26. axb5 {[%emt 0:01:01]} Bxb5 $18 {[%emt 0:00:25]} 27. Bc4 {[%emt 0:03:29]} Bd7 {[%emt 0:00:33]} 28. Qd2 {[%emt 0:07:31]} Re5 {[%emt 0:04:55]} 29. Bd5 {[%emt 0:00:38]} Qh4 {[%emt 0:01:08]} 30. Qf2 {[%emt 0:02:18]} Ng3 {[%emt 0:00:41]} 31. h3 {[%emt 0:03:37]} Rg5 {[%emt 0:03:51]} 32. Kh2 {[%emt 0:01:44]} Nxf1+ {[%emt 0:09:19]} 33. Rxf1 {[%emt 0:04:10]} Rg3 {[%emt 0:00:05]} 34. Qxc5 {[%emt 0:02:21]} Bxh3 {[%emt 0:00:33]} 35. Rf2 {[%emt 0:00:31]} Bxg2+ 0-1